[Event "Titled Tuesday Blitz February 07 Late 2023"]
[White "Curtis, John"]
[Black "ArchibaldCerveza29"]
[WhiteFideId "3200256"]
[WhiteElo "2292"]
[BlackElo "2520"]
[Result "1-0"]
[Round "01"]
[TimeControl "180+2"]
[Date "2023.02.07"]
[WhiteClock "0:00:13"]
[BlackClock "0:00:01"]

1. e4 {[%clk 0:02:54]}  e5 {[%clk 0:02:58]} 2. Nf3 {[%clk 0:02:54]}  Nc6 {[%clk 0:02:58]} 3. Bb5 {[%clk 0:02:53]}  g6 {[%clk 0:02:57]} 4. O-O {[%clk 0:02:52]}  Bg7 {[%clk 0:02:57]} 5. Nc3 {[%clk 0:02:45]}  Nge7 {[%clk 0:02:54]} 6. d3 {[%clk 0:02:42]}  O-O {[%clk 0:02:53]} 7. Bc4 {[%clk 0:02:39]}  h6 {[%clk 0:02:52]} 8. Be3 {[%clk 0:02:30]}  Kh7 {[%clk 0:02:52]} 9. d4 {[%clk 0:02:29]}  d6 {[%clk 0:02:42]} 10. dxe5 {[%clk 0:02:27]}  dxe5 {[%clk 0:02:37]} 11. Qxd8 {[%clk 0:02:26]}  Nxd8 {[%clk 0:02:35]} 12. Bc5 {[%clk 0:02:07]}  Re8 {[%clk 0:02:23]} 13. Rad1 {[%clk 0:02:07]}  Be6 {[%clk 0:02:19]} 14. Nd5 {[%clk 0:01:56]}  Nxd5 {[%clk 0:02:09]} 15. Bxd5 {[%clk 0:01:56]}  c6 {[%clk 0:02:03]} 16. Bxe6 {[%clk 0:01:49]}  Nxe6 {[%clk 0:02:04]} 17. Be3 {[%clk 0:01:49]}  Red8 {[%clk 0:01:54]} 18. g4 {[%clk 0:01:43]}  b6 {[%clk 0:01:48]} 19. Rfe1 {[%clk 0:01:38]}  Kg8 {[%clk 0:01:43]} 20. Kf1 {[%clk 0:01:38]}  Kf8 {[%clk 0:01:41]} 21. Ke2 {[%clk 0:01:38]}  Ke7 {[%clk 0:01:40]} 22. c4 {[%clk 0:01:24]}  c5 {[%clk 0:01:10]} 23. Rd5 {[%clk 0:01:21]}  Nd4+ {[%clk 0:01:05]} 24. Nxd4 {[%clk 0:01:17]}  cxd4 {[%clk 0:00:56]} 25. Bd2 {[%clk 0:01:17]}  Rxd5 {[%clk 0:00:55]} 26. cxd5 {[%clk 0:01:17]}  Rc8 {[%clk 0:00:53]} 27. Rc1 {[%clk 0:01:13]}  Rxc1 {[%clk 0:00:48]} 28. Bxc1 {[%clk 0:01:13]}  Kd6 {[%clk 0:00:48]} 29. Kd3 {[%clk 0:00:56]}  Kc5 {[%clk 0:00:29]} 30. f4 {[%clk 0:00:51]}  h5 {[%clk 0:00:25]} 31. fxe5 {[%clk 0:00:50]}  Bxe5 {[%clk 0:00:24]} 32. h3 {[%clk 0:00:43]}  a5 {[%clk 0:00:21]} 33. Bd2 {[%clk 0:00:42]}  Bg7 {[%clk 0:00:16]} 34. Be1 {[%clk 0:00:42]}  Be5 {[%clk 0:00:15]} 35. Bf2 {[%clk 0:00:41]}  Bf6 {[%clk 0:00:14]} 36. Bg3 {[%clk 0:00:39]}  a4 {[%clk 0:00:11]} 37. e5 {[%clk 0:00:33]}  Bd8 {[%clk 0:00:11]} 38. gxh5 {[%clk 0:00:30]}  gxh5 {[%clk 0:00:10]} 39. Ke4 {[%clk 0:00:30]}  d3 {[%clk 0:00:09]} 40. Bf4 {[%clk 0:00:24]}  Bh4 {[%clk 0:00:05]} 41. d6 {[%clk 0:00:24]}  Kc4 {[%clk 0:00:02]} 42. Bd2 {[%clk 0:00:13]}  Bd8 {[%clk 0:00:01]} 43. b3+ {[%clk 0:00:13]} 1-0


[Site "https://www.chess.com"]

[Event "Titled Tuesday Blitz February 07 Late 2023"]
[White "Osmak, Yuliia"]
[Black "Capp, Stephen"]
[WhiteFideId "14101602"]
[BlackFideId "2027089"]
[WhiteElo "2440"]
[BlackElo "1920"]
[Result "1-0"]
[Round "01"]
[TimeControl "180+2"]
[Date "2023.02.07"]
[WhiteClock "0:00:39"]
[BlackClock "0:00:31"]

1. e4 {[%clk 0:02:56]}  e5 {[%clk 0:02:59]} 2. Nf3 {[%clk 0:02:56]}  d5 {[%clk 0:02:59]} 3. exd5 {[%clk 0:02:47]}  Bd6 {[%clk 0:02:59]} 4. Bb5+ {[%clk 0:02:42]}  Nd7 {[%clk 0:02:56]} 5. Nc3 {[%clk 0:02:41]}  Nf6 {[%clk 0:02:55]} 6. d3 {[%clk 0:02:40]}  h6 {[%clk 0:02:54]} 7. O-O {[%clk 0:02:40]}  O-O {[%clk 0:02:54]} 8. Re1 {[%clk 0:02:37]}  Qe7 {[%clk 0:02:51]} 9. Bc4 {[%clk 0:02:34]}  Nb6 {[%clk 0:02:48]} 10. Bb3 {[%clk 0:02:29]}  Bg4 {[%clk 0:02:47]} 11. h3 {[%clk 0:02:28]}  Bh5 {[%clk 0:02:45]} 12. Be3 {[%clk 0:02:24]}  Bb4 {[%clk 0:02:41]} 13. Bxb6 {[%clk 0:02:21]}  Bxf3 {[%clk 0:02:33]} 14. Qxf3 {[%clk 0:02:20]}  axb6 {[%clk 0:02:33]} 15. Qf5 {[%clk 0:02:14]}  Bxc3 {[%clk 0:02:28]} 16. bxc3 {[%clk 0:02:14]}  Rfe8 {[%clk 0:02:24]} 17. Re3 {[%clk 0:02:11]}  Qd6 {[%clk 0:02:23]} 18. Rae1 {[%clk 0:02:01]}  Nxd5 {[%clk 0:02:16]} 19. Rxe5 {[%clk 0:02:00]}  Rxe5 {[%clk 0:02:15]} 20. Qxe5 {[%clk 0:01:59]}  Qxe5 {[%clk 0:02:10]} 21. Rxe5 {[%clk 0:02:00]}  Nf6 {[%clk 0:01:58]} 22. Re7 {[%clk 0:01:56]}  Rc8 {[%clk 0:01:57]} 23. Rxf7 {[%clk 0:01:54]}  Kh7 {[%clk 0:01:54]} 24. Be6 {[%clk 0:01:47]}  Re8 {[%clk 0:01:52]} 25. Bf5+ {[%clk 0:01:47]}  Kg8 {[%clk 0:01:51]} 26. Rxc7 {[%clk 0:01:46]}  Nd5 {[%clk 0:01:51]} 27. Rxb7 {[%clk 0:01:43]}  Nxc3 {[%clk 0:01:50]} 28. Bg6 {[%clk 0:01:41]}  Rf8 {[%clk 0:01:41]} 29. Rxb6 {[%clk 0:01:39]}  Nxa2 {[%clk 0:01:41]} 30. c4 {[%clk 0:01:37]}  Nc3 {[%clk 0:01:38]} 31. Rb7 {[%clk 0:01:29]}  Ne2+ {[%clk 0:01:37]} 32. Kh2 {[%clk 0:01:27]}  Nf4 {[%clk 0:01:37]} 33. Be4 {[%clk 0:01:26]}  Rd8 {[%clk 0:01:34]} 34. g3 {[%clk 0:01:25]}  Nxd3 {[%clk 0:01:33]} 35. Bxd3 {[%clk 0:01:22]}  Rxd3 {[%clk 0:01:32]} 36. c5 {[%clk 0:01:22]}  Rc3 {[%clk 0:01:32]} 37. Rc7 {[%clk 0:01:22]}  g5 {[%clk 0:01:29]} 38. Kg2 {[%clk 0:01:22]}  Kf8 {[%clk 0:01:29]} 39. Kf1 {[%clk 0:01:21]}  Ke8 {[%clk 0:01:29]} 40. Kg2 {[%clk 0:01:17]}  Kd8 {[%clk 0:01:28]} 41. Rh7 {[%clk 0:01:17]}  Rxc5 {[%clk 0:01:25]} 42. Rxh6 {[%clk 0:01:17]}  Ke7 {[%clk 0:01:25]} 43. Rg6 {[%clk 0:01:16]}  Kf7 {[%clk 0:01:24]} 44. Rb6 {[%clk 0:01:15]}  Rd5 {[%clk 0:01:23]} 45. Kf3 {[%clk 0:01:15]}  Ra5 {[%clk 0:01:20]} 46. Kg4 {[%clk 0:01:15]}  Kg7 {[%clk 0:01:19]} 47. Kh5 {[%clk 0:01:13]}  Rf5 {[%clk 0:01:13]} 48. Rg6+ {[%clk 0:01:11]}  Kh7 {[%clk 0:01:11]} 49. Rxg5 {[%clk 0:01:10]}  Rxf2 {[%clk 0:01:10]} 50. Ra5 {[%clk 0:01:09]}  Rf7 {[%clk 0:01:10]} 51. g4 {[%clk 0:01:08]}  Rg7 {[%clk 0:01:10]} 52. g5 {[%clk 0:01:08]}  Re7 {[%clk 0:01:10]} 53. h4 {[%clk 0:01:08]}  Rd7 {[%clk 0:01:10]} 54. Ra6 {[%clk 0:01:07]}  Kg7 {[%clk 0:01:10]} 55. Rf6 {[%clk 0:01:02]}  Kh7 {[%clk 0:01:09]} 56. Kg4 {[%clk 0:01:02]}  Kg7 {[%clk 0:01:09]} 57. h5 {[%clk 0:01:02]}  Rd4+ {[%clk 0:01:09]} 58. Rf4 {[%clk 0:01:01]}  Rd7 {[%clk 0:01:09]} 59. h6+ {[%clk 0:01:01]}  Kg6 {[%clk 0:01:07]} 60. Rf6+ {[%clk 0:01:00]}  Kh7 {[%clk 0:01:07]} 61. Kh5 {[%clk 0:01:01]}  Re7 {[%clk 0:01:05]} 62. g6+ {[%clk 0:01:00]}  Kg8 {[%clk 0:01:05]} 63. g7 {[%clk 0:00:59]}  Kh7 {[%clk 0:00:56]} 64. Rf8 {[%clk 0:00:44]}  Re5+ {[%clk 0:00:39]} 65. Kg4 {[%clk 0:00:42]}  Rg5+ {[%clk 0:00:37]} 66. Kf4 {[%clk 0:00:41]}  Rg6 {[%clk 0:00:31]} 67. Rh8# {[%clk 0:00:39]} 1-0


[Site "https://www.chess.com"]

[Event "Titled Tuesday Blitz February 07 Late 2023"]
[White "Kovalevsky, Stanislav"]
[Black "Ozates, Tuna"]
[WhiteFideId "13508598"]
[BlackFideId "6354521"]
[WhiteElo "2237"]
[BlackElo "2251"]
[Result "1/2-1/2"]
[Round "01"]
[TimeControl "180+2"]
[Date "2023.02.07"]
[WhiteClock "0:00:15"]
[BlackClock "0:00:04"]

1. c4 {[%clk 0:02:57]}  g6 {[%clk 0:02:58]} 2. Nc3 {[%clk 0:02:57]}  Bg7 {[%clk 0:02:59]} 3. g3 {[%clk 0:02:58]}  c5 {[%clk 0:02:59]} 4. Bg2 {[%clk 0:02:58]}  Nc6 {[%clk 0:03:00]} 5. e3 {[%clk 0:02:57]}  Nf6 {[%clk 0:02:58]} 6. Nge2 {[%clk 0:02:58]}  O-O {[%clk 0:02:58]} 7. a3 {[%clk 0:02:58]}  b6 {[%clk 0:02:55]} 8. O-O {[%clk 0:02:57]}  Bb7 {[%clk 0:02:56]} 9. d4 {[%clk 0:02:57]}  cxd4 {[%clk 0:02:55]} 10. exd4 {[%clk 0:02:58]}  Rc8 {[%clk 0:02:54]} 11. b3 {[%clk 0:02:57]}  e6 {[%clk 0:02:47]} 12. Bb2 {[%clk 0:02:30]}  d5 {[%clk 0:02:44]} 13. cxd5 {[%clk 0:02:29]}  Nxd5 {[%clk 0:02:44]} 14. Nxd5 {[%clk 0:02:28]}  exd5 {[%clk 0:02:44]} 15. Qd3 {[%clk 0:02:27]}  Re8 {[%clk 0:02:36]} 16. Rfe1 {[%clk 0:02:26]}  Ne7 {[%clk 0:02:25]} 17. Nf4 {[%clk 0:02:25]}  Qd7 {[%clk 0:02:15]} 18. Bh3 {[%clk 0:02:20]}  f5 {[%clk 0:02:15]} 19. Re2 {[%clk 0:02:12]}  Nc6 {[%clk 0:02:14]} 20. Rae1 {[%clk 0:02:11]}  Re4 {[%clk 0:02:13]} 21. f3 {[%clk 0:02:04]}  Nxd4 {[%clk 0:02:06]} 22. fxe4 {[%clk 0:01:55]}  dxe4 {[%clk 0:02:07]} 23. Rxe4 {[%clk 0:01:47]}  Bxe4 {[%clk 0:01:45]} 24. Rxe4 {[%clk 0:01:46]}  fxe4 {[%clk 0:01:44]} 25. Bxd7 {[%clk 0:01:43]}  exd3 {[%clk 0:01:42]} 26. Bxc8 {[%clk 0:01:31]}  Ne2+ {[%clk 0:00:35]} 27. Nxe2 {[%clk 0:01:09]}  Bxb2 {[%clk 0:00:29]} 28. Nf4 {[%clk 0:01:02]}  d2 {[%clk 0:00:25]} 29. Bg4 {[%clk 0:01:01]}  Bxa3 {[%clk 0:00:26]} 30. Kf2 {[%clk 0:01:01]}  Kg7 {[%clk 0:00:17]} 31. Ke2 {[%clk 0:01:00]}  Bb4 {[%clk 0:00:18]} 32. Nd5 {[%clk 0:00:55]}  Bc5 {[%clk 0:00:19]} 33. Bf3 {[%clk 0:00:49]}  g5 {[%clk 0:00:13]} 34. g4 {[%clk 0:00:46]}  Kf7 {[%clk 0:00:11]} 35. Kxd2 {[%clk 0:00:45]}  Ke6 {[%clk 0:00:12]} 36. Kd3 {[%clk 0:00:45]}  Ke5 {[%clk 0:00:12]} 37. Be4 {[%clk 0:00:44]}  h6 {[%clk 0:00:11]} 38. h3 {[%clk 0:00:44]}  b5 {[%clk 0:00:11]} 39. b4 {[%clk 0:00:26]}  Bd6 {[%clk 0:00:09]} 40. Ke3 {[%clk 0:00:25]}  a6 {[%clk 0:00:06]} 41. Bg2 {[%clk 0:00:19]}  Bb8 {[%clk 0:00:06]} 42. Kd3 {[%clk 0:00:17]}  Bd6 {[%clk 0:00:06]} 43. Nb6 {[%clk 0:00:16]}  Bxb4 {[%clk 0:00:05]} 44. Bb7 {[%clk 0:00:15]}  a5 {[%clk 0:00:05]} 45. Ba6 {[%clk 0:00:15]}  a4 {[%clk 0:00:05]} 46. Bxb5 {[%clk 0:00:15]}  a3 {[%clk 0:00:05]} 47. Bc4 {[%clk 0:00:15]}  Kf4 {[%clk 0:00:06]} 48. Nd5+ {[%clk 0:00:15]}  Kg3 {[%clk 0:00:06]} 49. Nxb4 {[%clk 0:00:16]}  Kxh3 {[%clk 0:00:06]} 50. Be6 {[%clk 0:00:16]}  Kh4 {[%clk 0:00:06]} 51. Ke4 {[%clk 0:00:16]}  h5 {[%clk 0:00:06]} 52. gxh5 {[%clk 0:00:15]}  Kxh5 {[%clk 0:00:07]} 53. Na2 {[%clk 0:00:16]}  Kh4 {[%clk 0:00:07]} 54. Kf3 {[%clk 0:00:16]}  Kh5 {[%clk 0:00:06]} 55. Bg4+ {[%clk 0:00:16]}  Kh4 {[%clk 0:00:07]} 56. Nc3 {[%clk 0:00:16]}  a2 {[%clk 0:00:04]} 57. Nxa2 {[%clk 0:00:15]} 1/2-1/2


[Site "https://www.chess.com"]

[Event "Titled Tuesday Blitz February 07 Late 2023"]
[White "Maltsevskaya, Aleksandra"]
[Black "Jesusesmifuerza"]
[WhiteFideId "24174041"]
[WhiteElo "2390"]
[BlackElo "2043"]
[Result "1-0"]
[Round "01"]
[TimeControl "180+2"]
[Date "2023.02.07"]
[WhiteClock "0:02:25"]
[BlackClock "0:00:58"]

1. Nf3 {[%clk 0:02:47]}  d5 {[%clk 0:02:58]} 2. g3 {[%clk 0:02:48]}  e6 {[%clk 0:02:57]} 3. d3 {[%clk 0:02:49]}  Nf6 {[%clk 0:02:58]} 4. Bg2 {[%clk 0:02:50]}  Be7 {[%clk 0:02:58]} 5. O-O {[%clk 0:02:51]}  O-O {[%clk 0:02:58]} 6. Nbd2 {[%clk 0:02:51]}  c5 {[%clk 0:02:57]} 7. e4 {[%clk 0:02:52]}  h6 {[%clk 0:02:55]} 8. exd5 {[%clk 0:02:53]}  exd5 {[%clk 0:02:53]} 9. c3 {[%clk 0:02:53]}  Nc6 {[%clk 0:02:53]} 10. a4 {[%clk 0:02:54]}  Bg4 {[%clk 0:02:52]} 11. h3 {[%clk 0:02:54]}  Bh5 {[%clk 0:02:51]} 12. Re1 {[%clk 0:02:53]}  Bg6 {[%clk 0:02:50]} 13. Nf1 {[%clk 0:02:53]}  Bd6 {[%clk 0:02:42]} 14. d4 {[%clk 0:02:53]}  cxd4 {[%clk 0:02:40]} 15. Nxd4 {[%clk 0:02:54]}  a6 {[%clk 0:02:38]} 16. Ne3 {[%clk 0:02:51]}  Qc7 {[%clk 0:02:35]} 17. Ndf5 {[%clk 0:02:50]}  Rad8 {[%clk 0:02:07]} 18. Nxd6 {[%clk 0:02:42]}  Qxd6 {[%clk 0:02:07]} 19. Nc2 {[%clk 0:02:42]}  Rfe8 {[%clk 0:02:00]} 20. Bf4 {[%clk 0:02:40]}  Qd7 {[%clk 0:01:58]} 21. Rxe8+ {[%clk 0:02:39]}  Rxe8 {[%clk 0:01:55]} 22. Nd4 {[%clk 0:02:40]}  Be4 {[%clk 0:01:52]} 23. Nxc6 {[%clk 0:02:39]}  bxc6 {[%clk 0:01:53]} 24. Qd4 {[%clk 0:02:40]}  Bxg2 {[%clk 0:01:52]} 25. Kxg2 {[%clk 0:02:40]}  Qe6 {[%clk 0:01:48]} 26. Rd1 {[%clk 0:02:36]}  Qe4+ {[%clk 0:01:47]} 27. Kg1 {[%clk 0:02:36]}  Qxd4 {[%clk 0:01:46]} 28. Rxd4 {[%clk 0:02:37]}  Re2 {[%clk 0:01:36]} 29. Rb4 {[%clk 0:02:36]}  Ne4 {[%clk 0:01:35]} 30. Be3 {[%clk 0:02:36]}  Nxg3 {[%clk 0:01:34]} 31. Rb6 {[%clk 0:02:36]}  Nf5 {[%clk 0:01:25]} 32. Bc5 {[%clk 0:02:35]}  Re6 {[%clk 0:01:19]} 33. Rxa6 {[%clk 0:02:34]}  Nh4 {[%clk 0:01:13]} 34. a5 {[%clk 0:02:27]}  Nf3+ {[%clk 0:01:10]} 35. Kg2 {[%clk 0:02:27]}  Ne1+ {[%clk 0:01:07]} 36. Kf1 {[%clk 0:02:27]}  Nd3 {[%clk 0:01:04]} 37. Be3 {[%clk 0:02:27]}  Nxb2 {[%clk 0:01:03]} 38. Ra8+ {[%clk 0:02:26]}  Kh7 {[%clk 0:01:02]} 39. a6 {[%clk 0:02:27]}  Nc4 {[%clk 0:01:01]} 40. a7 {[%clk 0:02:24]}  Nxe3+ {[%clk 0:01:01]} 41. fxe3 {[%clk 0:02:25]}  Re7 {[%clk 0:01:01]} 42. Rh8+ {[%clk 0:02:24]}  Kxh8 {[%clk 0:00:58]} 43. a8=Q+ {[%clk 0:02:25]} 1-0


[Site "https://www.chess.com"]

[Event "Titled Tuesday Blitz February 07 Late 2023"]
[White "Ismagilov, Damir"]
[Black "Shapiro, Bryan"]
[WhiteFideId "34199982"]
[BlackFideId "2087740"]
[WhiteElo "2156"]
[BlackElo "1972"]
[Result "1-0"]
[Round "01"]
[TimeControl "180+2"]
[Date "2023.02.07"]
[WhiteClock "0:00:32"]
[BlackClock "0:00:06"]

1. e4 {[%clk 0:02:57]}  e5 {[%clk 0:03:00]} 2. Nf3 {[%clk 0:02:57]}  Nc6 {[%clk 0:03:00]} 3. Bc4 {[%clk 0:02:56]}  Bc5 {[%clk 0:03:00]} 4. O-O {[%clk 0:02:55]}  Nf6 {[%clk 0:03:00]} 5. Nc3 {[%clk 0:02:50]}  d6 {[%clk 0:02:57]} 6. h3 {[%clk 0:02:50]}  a6 {[%clk 0:02:57]} 7. d3 {[%clk 0:02:50]}  h6 {[%clk 0:02:56]} 8. a3 {[%clk 0:02:50]}  Ba7 {[%clk 0:02:53]} 9. Be3 {[%clk 0:02:50]}  Bxe3 {[%clk 0:02:48]} 10. fxe3 {[%clk 0:02:51]}  Be6 {[%clk 0:02:48]} 11. Bxe6 {[%clk 0:02:33]}  fxe6 {[%clk 0:02:44]} 12. d4 {[%clk 0:02:32]}  exd4 {[%clk 0:02:39]} 13. exd4 {[%clk 0:02:33]}  e5 {[%clk 0:02:19]} 14. d5 {[%clk 0:02:28]}  Ne7 {[%clk 0:02:15]} 15. Nh4 {[%clk 0:02:26]}  Qd7 {[%clk 0:02:11]} 16. Qd3 {[%clk 0:02:21]}  Nh5 {[%clk 0:01:59]} 17. Ne2 {[%clk 0:02:13]}  Rf8 {[%clk 0:01:41]} 18. c4 {[%clk 0:02:07]}  O-O-O {[%clk 0:01:38]} 19. b4 {[%clk 0:02:06]}  g5 {[%clk 0:01:30]} 20. Nf3 {[%clk 0:02:06]}  Nf4 {[%clk 0:01:29]} 21. Nxf4 {[%clk 0:02:06]}  gxf4 {[%clk 0:01:20]} 22. c5 {[%clk 0:02:05]}  dxc5 {[%clk 0:01:08]} 23. bxc5 {[%clk 0:02:04]}  c6 {[%clk 0:01:08]} 24. Nxe5 {[%clk 0:02:00]}  Qc7 {[%clk 0:01:04]} 25. d6 {[%clk 0:02:00]}  Qa5 {[%clk 0:00:57]} 26. Qc4 {[%clk 0:01:46]}  Ng8 {[%clk 0:00:46]} 27. Rab1 {[%clk 0:01:39]}  Nf6 {[%clk 0:00:38]} 28. Rb3 {[%clk 0:01:14]}  Nd7 {[%clk 0:00:29]} 29. Nxd7 {[%clk 0:01:09]}  Rxd7 {[%clk 0:00:30]} 30. e5 {[%clk 0:01:10]}  Rg7 {[%clk 0:00:22]} 31. Qb4 {[%clk 0:00:49]}  Qd8 {[%clk 0:00:16]} 32. e6 {[%clk 0:00:44]}  Qg5 {[%clk 0:00:12]} 33. d7+ {[%clk 0:00:43]}  Kd8 {[%clk 0:00:10]} 34. Qd2 {[%clk 0:00:34]}  Qxc5+ {[%clk 0:00:09]} 35. Kh1 {[%clk 0:00:33]}  Re7 {[%clk 0:00:08]} 36. Rxb7 {[%clk 0:00:32]}  Rxe6 {[%clk 0:00:09]} 37. Rb8+ {[%clk 0:00:32]}  Kc7 {[%clk 0:00:06]} 38. d8=Q+ {[%clk 0:00:31]}  Rxd8 {[%clk 0:00:06]} 39. Qxd8# {[%clk 0:00:32]} 1-0


[Site "https://www.chess.com"]

[Event "Titled Tuesday Blitz February 07 Late 2023"]
[White "Balog, Imre"]
[Black "Dauner, Benedikt"]
[WhiteFideId "728446"]
[BlackFideId "16225899"]
[WhiteElo "2615"]
[BlackElo "2400"]
[Result "1/2-1/2"]
[Round "01"]
[TimeControl "180+2"]
[Date "2023.02.07"]
[WhiteClock "0:00:06"]
[BlackClock "0:00:19"]

1. e4 {[%clk 0:02:57]}  d5 {[%clk 0:02:59]} 2. exd5 {[%clk 0:02:56]}  Qxd5 {[%clk 0:03:00]} 3. Nc3 {[%clk 0:02:55]}  Qd6 {[%clk 0:02:59]} 4. Nf3 {[%clk 0:02:51]}  Nf6 {[%clk 0:02:58]} 5. d4 {[%clk 0:02:48]}  Nc6 {[%clk 0:02:58]} 6. Nb5 {[%clk 0:02:29]}  Qd8 {[%clk 0:02:56]} 7. Ne5 {[%clk 0:01:42]}  Nxe5 {[%clk 0:02:12]} 8. dxe5 {[%clk 0:01:42]}  Qxd1+ {[%clk 0:02:13]} 9. Kxd1 {[%clk 0:01:42]}  Nd5 {[%clk 0:02:13]} 10. c4 {[%clk 0:01:28]}  a6 {[%clk 0:01:59]} 11. cxd5 {[%clk 0:01:22]}  axb5 {[%clk 0:02:00]} 12. Bxb5+ {[%clk 0:01:22]}  Bd7 {[%clk 0:02:01]} 13. Bxd7+ {[%clk 0:01:18]}  Kxd7 {[%clk 0:02:02]} 14. Bf4 {[%clk 0:00:59]}  Ra5 {[%clk 0:02:00]} 15. e6+ {[%clk 0:00:55]}  fxe6 {[%clk 0:01:59]} 16. dxe6+ {[%clk 0:00:54]}  Kxe6 {[%clk 0:02:00]} 17. Bxc7 {[%clk 0:00:49]}  Rb5 {[%clk 0:01:49]} 18. b3 {[%clk 0:00:43]}  g6 {[%clk 0:01:46]} 19. Re1+ {[%clk 0:00:41]}  Kf7 {[%clk 0:01:46]} 20. Be5 {[%clk 0:00:37]}  Rxe5 {[%clk 0:01:37]} 21. Rxe5 {[%clk 0:00:37]}  Bg7 {[%clk 0:01:38]} 22. f4 {[%clk 0:00:36]}  Bxe5 {[%clk 0:01:38]} 23. fxe5 {[%clk 0:00:37]}  Ke6 {[%clk 0:01:36]} 24. Kd2 {[%clk 0:00:34]}  Kxe5 {[%clk 0:01:32]} 25. a4 {[%clk 0:00:31]}  Kd4 {[%clk 0:01:28]} 26. Rc1 {[%clk 0:00:26]}  Rf8 {[%clk 0:01:26]} 27. Rc4+ {[%clk 0:00:26]}  Kd5 {[%clk 0:01:26]} 28. Rc7 {[%clk 0:00:24]}  e5 {[%clk 0:00:58]} 29. Rxb7 {[%clk 0:00:22]}  Rf2+ {[%clk 0:00:57]} 30. Kc3 {[%clk 0:00:21]}  e4 {[%clk 0:00:55]} 31. Rd7+ {[%clk 0:00:20]}  Ke5 {[%clk 0:00:49]} 32. Re7+ {[%clk 0:00:16]}  Kd5 {[%clk 0:00:49]} 33. a5 {[%clk 0:00:14]}  Rxg2 {[%clk 0:00:43]} 34. a6 {[%clk 0:00:12]}  Rxh2 {[%clk 0:00:41]} 35. a7 {[%clk 0:00:11]}  Ra2 {[%clk 0:00:42]} 36. Rxh7 {[%clk 0:00:09]}  e3 {[%clk 0:00:39]} 37. Re7 {[%clk 0:00:08]}  e2 {[%clk 0:00:39]} 38. Rxe2 {[%clk 0:00:08]}  Rxa7 {[%clk 0:00:38]} 39. Rd2+ {[%clk 0:00:08]}  Kc5 {[%clk 0:00:37]} 40. b4+ {[%clk 0:00:07]}  Kc6 {[%clk 0:00:35]} 41. Kc4 {[%clk 0:00:08]}  Rc7 {[%clk 0:00:32]} 42. Rg2 {[%clk 0:00:07]}  Kb6+ {[%clk 0:00:32]} 43. Kb3 {[%clk 0:00:06]}  Rc6 {[%clk 0:00:31]} 44. Rg5 {[%clk 0:00:07]}  Rf6 {[%clk 0:00:26]} 45. Ka4 {[%clk 0:00:06]}  Ka6 {[%clk 0:00:25]} 46. Kb3 {[%clk 0:00:05]}  Kb6 {[%clk 0:00:24]} 47. Ka4 {[%clk 0:00:06]}  Re6 {[%clk 0:00:23]} 48. Kb3 {[%clk 0:00:06]}  Kc6 {[%clk 0:00:21]} 49. Ka4 {[%clk 0:00:06]}  Kb6 {[%clk 0:00:20]} 50. Kb3 {[%clk 0:00:06]}  Rf6 {[%clk 0:00:19]} 1/2-1/2


[Site "https://www.chess.com"]

[Event "Titled Tuesday Blitz February 07 Late 2023"]
[White "Landaw, Julian"]
[Black "Castillo Pena, Patricia Evarista"]
[WhiteFideId "2023342"]
[BlackFideId "6412106"]
[WhiteElo "2318"]
[BlackElo "1783"]
[Result "1-0"]
[Round "01"]
[TimeControl "180+2"]
[Date "2023.02.07"]
[WhiteClock "0:01:03"]
[BlackClock "0:00:13"]

1. e4 {[%clk 0:02:58]}  c5 {[%clk 0:02:57]} 2. Nc3 {[%clk 0:02:58]}  Nc6 {[%clk 0:02:56]} 3. g3 {[%clk 0:02:58]}  g6 {[%clk 0:02:55]} 4. Bg2 {[%clk 0:02:59]}  Bg7 {[%clk 0:02:55]} 5. d3 {[%clk 0:03:00]}  Nf6 {[%clk 0:02:44]} 6. f4 {[%clk 0:02:59]}  d6 {[%clk 0:02:44]} 7. Nf3 {[%clk 0:02:59]}  O-O {[%clk 0:02:42]} 8. O-O {[%clk 0:02:59]}  Bg4 {[%clk 0:02:40]} 9. h3 {[%clk 0:02:58]}  Bd7 {[%clk 0:02:31]} 10. Be3 {[%clk 0:02:57]}  Rc8 {[%clk 0:02:30]} 11. g4 {[%clk 0:02:53]}  e6 {[%clk 0:02:28]} 12. e5 {[%clk 0:02:44]}  dxe5 {[%clk 0:02:20]} 13. fxe5 {[%clk 0:02:44]}  Ne8 {[%clk 0:02:14]} 14. Bxc5 {[%clk 0:02:44]}  Nxe5 {[%clk 0:02:11]} 15. Bxf8 {[%clk 0:02:43]}  Kxf8 {[%clk 0:02:10]} 16. Nxe5 {[%clk 0:02:24]}  Bxe5 {[%clk 0:02:10]} 17. Qf3 {[%clk 0:02:24]}  Bd4+ {[%clk 0:02:02]} 18. Kh1 {[%clk 0:02:22]}  Qe7 {[%clk 0:01:53]} 19. Qxb7 {[%clk 0:02:17]}  Bxc3 {[%clk 0:01:35]} 20. bxc3 {[%clk 0:02:16]}  Rxc3 {[%clk 0:01:33]} 21. Rf2 {[%clk 0:02:11]}  Ba4 {[%clk 0:01:23]} 22. Qe4 {[%clk 0:01:41]}  Bxc2 {[%clk 0:01:01]} 23. Qd4 {[%clk 0:01:35]}  Qc5 {[%clk 0:00:45]} 24. Qh8+ {[%clk 0:01:33]}  Ke7 {[%clk 0:00:45]} 25. Raf1 {[%clk 0:01:31]}  f5 {[%clk 0:00:22]} 26. Qxh7+ {[%clk 0:01:27]}  Kd8 {[%clk 0:00:22]} 27. Qxg6 {[%clk 0:01:22]}  Bxd3 {[%clk 0:00:17]} 28. Rd2 {[%clk 0:01:06]}  Rc1 {[%clk 0:00:13]} 29. Rxd3+ {[%clk 0:01:03]} 1-0


[Site "https://www.chess.com"]

[Event "Titled Tuesday Blitz February 07 Late 2023"]
[White "So, Wesley"]
[Black "Shuvalova, Polina"]
[WhiteFideId "5202213"]
[BlackFideId "24171760"]
[WhiteElo "2760"]
[BlackElo "2484"]
[Result "1-0"]
[Round "02"]
[TimeControl "180+2"]
[Date "2023.02.07"]
[WhiteClock "0:01:30"]
[BlackClock "0:00:08"]

1. d4 {[%clk 0:03:00]}  Nf6 {[%clk 0:02:59]} 2. Nf3 {[%clk 0:02:59]}  d5 {[%clk 0:02:59]} 3. c4 {[%clk 0:02:57]}  e6 {[%clk 0:02:58]} 4. g3 {[%clk 0:02:56]}  Bb4+ {[%clk 0:02:56]} 5. Bd2 {[%clk 0:02:55]}  Be7 {[%clk 0:02:56]} 6. Bg2 {[%clk 0:02:55]}  O-O {[%clk 0:02:57]} 7. Qc2 {[%clk 0:02:55]}  Nbd7 {[%clk 0:02:57]} 8. O-O {[%clk 0:02:55]}  c6 {[%clk 0:02:56]} 9. Rd1 {[%clk 0:02:49]}  b6 {[%clk 0:02:54]} 10. b3 {[%clk 0:02:47]}  h6 {[%clk 0:02:40]} 11. Nc3 {[%clk 0:02:47]}  Ba6 {[%clk 0:02:40]} 12. Bf4 {[%clk 0:02:32]}  dxc4 {[%clk 0:01:57]} 13. bxc4 {[%clk 0:01:58]}  Bxc4 {[%clk 0:01:52]} 14. Nd2 {[%clk 0:01:51]}  Ba6 {[%clk 0:01:43]} 15. Bxc6 {[%clk 0:01:52]}  Rc8 {[%clk 0:01:42]} 16. Qa4 {[%clk 0:01:52]}  g5 {[%clk 0:01:14]} 17. Be5 {[%clk 0:01:45]}  Bb4 {[%clk 0:00:24]} 18. Bxd7 {[%clk 0:01:32]}  Bxc3 {[%clk 0:00:12]} 19. Bxc8 {[%clk 0:01:30]}  Bxc8 {[%clk 0:00:09]} 20. Bxf6 {[%clk 0:01:30]}  Qxf6 {[%clk 0:00:08]} 21. Ne4 {[%clk 0:01:30]} 1-0


[Site "https://www.chess.com"]